{"text_format":"3","workbook":"xlsx","n_sheets":2,"sheets":["KAIP NAUDOTI ŠIĄ DARBAKNYGĘ","ĮVERTINIMŲ ŽURNALAS"],"not_rendered":{"defined_names":5},"read":"whole","date_system":"1900"}

{"sheet":"KAIP NAUDOTI ŠIĄ DARBAKNYGĘ","index":0,"n_rows":10,"n_cols":2,"rows_kept":10}
[null,"INSTRUKCIJOS"]
[null,"Naudodami ĮVERTINIMŲ ŽURNALAS darbalapį apskaičiuokite įvertinimus, kai kiekviena užduotis verta tam tikro taškų skaičiaus. "]
[null,"Instrukcijos: Nepamirškite įrašyti įvertinimų atsarginių kopijų."]
[null,"1. Įveskite mokyklos pavadinimas, klasės informaciją, mokinių bardus ir mokinių ID (pasirinktinai).   "]
[null,"2. Keiskite įvertinimus ir GPSA lentelę atsižvelgdami į naudojamą vertinimo sistemą."]
[null,"3. Įveskite užduočių ar testų pavadinimus pradėdami nuo G7 langelio kartu su procentine reikšme (pvz., „Galutinis“ ir „50 %“). "]
[null,"4. Užpildykite kiekvieno mokinio įvertinimą už kiekvieną užduotį ar testą. Automatiškai apskaičiuojami stulpeliai „Rezultatas“, „Ltr vertinimas“ ir „GPA“, tačiau juos galima perrašyti. Įvertinimai skaičiuojami taip, kad galutinis įvertinimas apskaičiuojamas tik įvedus visus vertinimus."]
[null,"Naudokite komandą „Spausdinimo sritis“ meniu Puslapio maketas, jei norite pakeisti, kokia sritis bus išspausdinta."]
[null,"„Rezultatas“, „Ltr įvertinimas“ ir „GPA“ tampa tinkami rik užbaigus 100 % testų ir užduočių. "]
[null,"Įveskite kiekvieną užduotį arba testą ir jo procentinę bendrojo įvertinimo dalį nuo G7 iki W8 langeliuose."]

{"sheet":"ĮVERTINIMŲ ŽURNALAS","index":1,"n_rows":20,"n_cols":23,"rows_kept":20,"merged":[[5,1,5,5],[6,1,6,3],[6,4,6,5],[7,1,8,3],[7,4,7,5],[8,4,8,5],[15,1,15,5],[16,1,16,2],[17,1,17,2],[18,1,18,2],[19,1,19,2]]}
[null,"MOKYKLOS PAVADINIMAS"]
[]
[{"$nulls":6},"Rezultatas",{"v":0,"d":"0%"},{"v":0.6,"d":"60%"},{"v":0.63,"d":"63%"},{"v":0.67,"d":"67%"},{"v":0.7,"d":"70%"},{"v":0.73,"d":"73%"},{"v":0.77,"d":"77%"},{"v":0.8,"d":"80%"},{"v":0.83,"d":"83%"},{"v":0.87,"d":"87%"},{"v":0.9,"d":"90%"},{"v":0.93,"d":"93%"},{"v":0.97,"d":"97%"}]
[{"$nulls":6},"Ltr vertinimas","F","D-","D","D+","C-","C","C+","B-","B","B+","A-","A","A+"]
[{"$nulls":6},"GPA",0,0.67,1,1.33,1.67,2,2.33,2.67,3,3.33,3.67,4,4]
[null,"Mokytojo vardas ir pavardė"]
[null,"Klasė / projektas",null,null,"Užduoties ar testo pavadinimas"]
[null,"Metai/semestras/ketvirtis",null,null,"Procentinė reikšmė (turėtų būti lygi 100 %)"]
[{"$nulls":4},{"$f":"\"Bendroji procentinė reikšmė: \"&SUM(G8:W8)*100&\"%\"","v":"Bendroji procentinė reikšmė: 0%"}]
[null,"Mokinio vardas","Mokinio ID","Rezultatas","Ltr vertinimas","GPA","6stulpelis","7Stulpelis","8stulpelis","9stulpelis","10stulpelis","11stulpelis","12stulpelis","13stulpelis","14stulpelis","15stulpelis","16stulpelis","17stulpelis","18stulpelis","19stulpelis","20stulpelis","21stulpelis","22stulpelis"]
[{"$nulls":3},{"$f":"(IF(SUM(Įvertinimai[[#This Row],[6stulpelis]:[22stulpelis]]),ROUND(SUMPRODUCT($G$8:$W$8,Įvertinimai[[#This Row],[6stulpelis]:[22stulpelis]]),2),\"\"))","v":""},{"$f":"IF(Įvertinimai[[#This Row],[Rezultatas]]<>\"\",HLOOKUP(Įvertinimai[[#This Row],[Rezultatas]],ĮvertinimųLentelė,2),\"\")","v":""},{"$f":"IF(Įvertinimai[[#This Row],[Rezultatas]]<>\"\",HLOOKUP(Įvertinimai[[#This Row],[Rezultatas]],ĮvertinimųLentelė,3),\"\")","v":""}]
[{"$nulls":3},{"$f":"(IF(SUM(Įvertinimai[[#This Row],[6stulpelis]:[22stulpelis]]),ROUND(SUMPRODUCT($G$8:$W$8,Įvertinimai[[#This Row],[6stulpelis]:[22stulpelis]]),2),\"\"))","v":""},{"$f":"IF(Įvertinimai[[#This Row],[Rezultatas]]<>\"\",HLOOKUP(Įvertinimai[[#This Row],[Rezultatas]],ĮvertinimųLentelė,2),\"\")","v":""},{"$f":"IF(Įvertinimai[[#This Row],[Rezultatas]]<>\"\",HLOOKUP(Įvertinimai[[#This Row],[Rezultatas]],ĮvertinimųLentelė,3),\"\")","v":""}]
[{"$nulls":3},{"$f":"(IF(SUM(Įvertinimai[[#This Row],[6stulpelis]:[22stulpelis]]),ROUND(SUMPRODUCT($G$8:$W$8,Įvertinimai[[#This Row],[6stulpelis]:[22stulpelis]]),2),\"\"))","v":""},{"$f":"IF(Įvertinimai[[#This Row],[Rezultatas]]<>\"\",HLOOKUP(Įvertinimai[[#This Row],[Rezultatas]],ĮvertinimųLentelė,2),\"\")","v":""},{"$f":"IF(Įvertinimai[[#This Row],[Rezultatas]]<>\"\",HLOOKUP(Įvertinimai[[#This Row],[Rezultatas]],ĮvertinimųLentelė,3),\"\")","v":""}]
[{"$nulls":3},{"$f":"(IF(SUM(Įvertinimai[[#This Row],[6stulpelis]:[22stulpelis]]),ROUND(SUMPRODUCT($G$8:$W$8,Įvertinimai[[#This Row],[6stulpelis]:[22stulpelis]]),2),\"\"))","v":""},{"$f":"IF(Įvertinimai[[#This Row],[Rezultatas]]<>\"\",HLOOKUP(Įvertinimai[[#This Row],[Rezultatas]],ĮvertinimųLentelė,2),\"\")","v":""},{"$f":"IF(Įvertinimai[[#This Row],[Rezultatas]]<>\"\",HLOOKUP(Įvertinimai[[#This Row],[Rezultatas]],ĮvertinimųLentelė,3),\"\")","v":""}]
[{"$nulls":3},{"$f":"(IF(SUM(Įvertinimai[[#This Row],[6stulpelis]:[22stulpelis]]),ROUND(SUMPRODUCT($G$8:$W$8,Įvertinimai[[#This Row],[6stulpelis]:[22stulpelis]]),2),\"\"))","v":""},{"$f":"IF(Įvertinimai[[#This Row],[Rezultatas]]<>\"\",HLOOKUP(Įvertinimai[[#This Row],[Rezultatas]],ĮvertinimųLentelė,2),\"\")","v":""},{"$f":"IF(Įvertinimai[[#This Row],[Rezultatas]]<>\"\",HLOOKUP(Įvertinimai[[#This Row],[Rezultatas]],ĮvertinimųLentelė,3),\"\")","v":""}]
[]
[null,"Klasės suvestinė",null,"Rezultatas","Ltr vertinimas","GPA","","","","","","","","","","",""]
[null," Vidurkis",null,{"$f":"IFERROR(AVERAGE(Įvertinimai[[#All],[Rezultatas]]),0)","v":{"v":0,"d":"0.0%"}},{"$f":"IFERROR(HLOOKUP(D18,ĮvertinimųLentelė,2),\"\")","v":"F"},{"$f":"IFERROR(AVERAGE(Įvertinimai[[#All],[GPA]]),0)","v":0},"","","","","","","","","","","","","","","","",""]
[null," Aukščiausias įvertinimas",null,{"$f":"IFERROR(MAX(Įvertinimai[[#All],[Rezultatas]]),0)","v":{"v":0,"d":"0.0%"}},{"$f":"IFERROR(HLOOKUP(D19,ĮvertinimųLentelė,2),\"\")","v":"F"},{"$f":"IFERROR(MAX(Įvertinimai[[#All],[GPA]]),0)","v":0},"","","","","","","","","","","","","","","","",""]
[null," Žemiausias įvertinimas",null,{"$f":"IFERROR(MIN(Įvertinimai[[#All],[Rezultatas]]),0)","v":{"v":0,"d":"0.0%"}},{"$f":"IFERROR(HLOOKUP(D20,ĮvertinimųLentelė,2),\"\")","v":"F"},{"$f":"IFERROR(MIN(Įvertinimai[[#All],[GPA]]),0)","v":0},"","","","","","","","","","","","","","","","",""]